Workbook

Sheet Sheet1
A1: 2026 READ SCHEDULE
C2: DECEMBER | D2: JANUARY | F2: FEBRUARY | H2: MARCH | J2: APRIL | L2: MAY | N2: JUNE | P2: JULY | R2: AUGUST | T2: SEPTEMBER | V2: OCTOBER | X2: NOVEMBER | Z2: DECEMBER | AB2: JANUARY
C3: 2025 | D3: 2026 | F3: 2026 | H3: 2026 | J3: 2026 | L3: 2026 | N3: 2026 | P3: 2026 | R3: 2026 | T3: 2026 | V3: 2026 | X3: 2026 | Z3: 2026 | AB3: 2027
B4: CYCLE | C4: READ DATE | D4: READ DATE | E4: ELAPSED DAYS | F4: READ DATE | G4: ELAPSED DAYS | H4: READ DATE | I4: ELAPSED DAYS | J4: READ DATE | K4: ELAPSED DAYS | L4: READ DATE | M4: ELAPSED DAYS | N4: READ DATE | O4: ELAPSED DAYS | P4: READ DATE | Q4: ELAPSED DAYS | R4: READ DATE | S4: ELAPSED DAYS | T4: READ DATE | U4: ELAPSED DAYS | V4: READ DATE | W4: ELAPSED DAYS | X4: READ DATE | Y4: ELAPSED DAYS | Z4: READ DATE | AA4: ELAPSED DAYS | AB4: READ DATE | AC4: ELAPSED DAYS | AE4: February | AF4: Feb Leap Year | AG4: Days Prior Month | AH4: Days Prior Month
B5: 1 | C5: 2 | D5: 2 | E5: =$AH$5-C5+D5 -> 31 | F5: 30 | G5: =-D5+F5 -> 28 | H5: 2 | I5: =$AE$5+H5 -> 30 | J5: 1 | K5: =$AH$5-H5+J5 -> 30 | L5: 1 | M5: =$AG$5-J5+L5 -> 30 | N5: 1 | O5: =$AH$5-L5+N5 -> 31 | P5: 1 | Q5: =$AG$5-N5+P5 -> 30 | R5: 3 | S5: =$AH$5-P5+R5 -> 33 | T5: 1 | U5: =$AH$5-R5+T5 -> 29 | V5: 1 | W5: =$AG$5-T5+V5 -> 30 | X5: 30 | Y5: =X5-V5 -> 29 | Z5: 2 | AA5: =AH5-X5+AG5+Z5 -> 33 | AB5: 4 | AC5: =$AH$5-Z5+AB5 -> 33 | AE5: 28 | AF5: 29 | AG5: 30 | AH5: 31
B6: 2 | C6: 3 | D6: 5 | E6: 33 | F6: 2 | G6: =$AH$5-D6+F6 -> 28 | H6: 3 | I6: =$AE$5-F6+H6 -> 29 | J6: 2 | K6: =$AH$5-H6+J6 -> 30 | L6: 4 | M6: =$AG$5-J6+L6 -> 32 | N6: 2 | O6: =$AH$5-L6+N6 -> 29 | P6: 2 | Q6: =$AG$5-N6+P6 -> 30 | R6: 4 | S6: =$AH$5-P6+R6 -> 33 | T6: 2 | U6: =$AH$5-R6+T6 -> 29 | V6: 2 | W6: =$AG$5-T6+V6 -> 30 | X6: 2 | Y6: =$AH$5-V6+X6 -> 31 | Z6: 3 | AA6: =$AG$5-X6+Z6 -> 31 | AB6: 5 | AC6: =$AH$5-Z6+AB6 -> 33
B7: 3 | C7: 4 | D7: 6 | E7: 33 | F7: 3 | G7: =$AH$5-D7+F7 -> 28 | H7: 4 | I7: =$AE$5-F7+H7 -> 29 | J7: 3 | K7: 30 | L7: 5 | M7: 32 | N7: 3 | O7: 29 | P7: 6 | Q7: 33 | R7: 5 | S7: 30 | T7: 3 | U7: 29 | V7: 5 | W7: 32 | X7: 3 | Y7: =$AH$5-V7+X7 -> 29 | Z7: 4 | AA7: 31 | AB7: 6 | AC7: 33
B8: 4 | C8: 5 | D8: 7 | E8: 33 | F8: 4 | G8: 28 | H8: 5 | I8: 29 | J8: 6 | K8: 32 | L8: 6 | M8: 30 | N8: 4 | O8: 29 | P8: 7 | Q8: 33 | R8: 6 | S8: 30 | T8: 4 | U8: 29 | V8: 6 | W8: 32 | X8: 4 | Y8: =$AH$5-V8+X8 -> 29 | Z8: 7 | AA8: 33 | AB8: 7 | AC8: 31
B9: 5 | C9: 8 | D9: 8 | E9: 31 | F9: 5 | G9: 28 | H9: 6 | I9: 29 | J9: 7 | K9: 32 | L9: 7 | M9: 30 | N9: 5 | O9: 29 | P9: 8 | Q9: 33 | R9: 7 | S9: 30 | T9: 8 | U9: 32 | V9: 7 | W9: 29 | X9: 5 | Y9: 29 | Z9: 8 | AA9: 33 | AB9: 8 | AC9: 31
B10: 6 | C10: 9 | D10: 9 | E10: 31 | F10: 6 | G10: 28 | H10: 9 | I10: 31 | J10: 8 | K10: 30 | L10: 8 | M10: 30 | N10: 8 | O10: 31 | P10: 9 | Q10: 31 | R10: 10 | S10: 32 | T10: 9 | U10: 30 | V10: 8 | W10: 29 | X10: 6 | Y10: 29 | Z10: 9 | AA10: 33 | AB10: 11 | AC10: 33
B11: 7 | C11: 10 | D11: 12 | E11: 33 | F11: 9 | G11: 28 | H11: 10 | I11: 29 | J11: 9 | K11: 30 | L11: 11 | M11: 32 | N11: 9 | O11: 29 | P11: 10 | Q11: 31 | R11: 11 | S11: 32 | T11: 10 | U11: 30 | V11: 9 | W11: 29 | X11: 9 | Y11: 31 | Z11: 10 | AA11: 31 | AB11: 12 | AC11: 33
B12: 8 | C12: 11 | D12: 13 | E12: 33 | F12: 10 | G12: 28 | H12: 11 | I12: 29 | J12: 10 | K12: 30 | L12: 12 | M12: 32 | N12: 10 | O12: 29 | P12: 13 | Q12: 33 | R12: 12 | S12: 30 | T12: 11 | U12: 30 | V12: 13 | W12: 32 | X12: 10 | Y12: 28 | Z12: 11 | AA12: 31 | AB12: 13 | AC12: 33
B13: 9 | C13: 12 | D13: 14 | E13: 33 | F13: 11 | G13: 28 | H13: 12 | I13: 29 | J13: 13 | K13: 32 | L13: 13 | M13: 30 | N13: 11 | O13: 29 | P13: 14 | Q13: 33 | R13: 13 | S13: 30 | T13: 14 | U13: 32 | V13: 14 | W13: 30 | X13: 12 | Y13: 29 | Z13: 14 | AA13: 32 | AB13: 14 | AC13: 31
B14: 10 | C14: 15 | D14: 15 | E14: 31 | F14: 12 | G14: 28 | H14: 13 | I14: 29 | J14: 14 | K14: 32 | L14: 14 | M14: 30 | N14: 12 | O14: 29 | P14: 15 | Q14: 33 | R14: 14 | S14: 30 | T14: 15 | U14: 32 | V14: 15 | W14: 30 | X14: 13 | Y14: 29 | Z14: 15 | AA14: 32 | AB14: 15 | AC14: 31
B15: 11 | C15: 16 | D15: 16 | E15: 31 | F15: 13 | G15: 28 | H15: 16 | I15: 31 | J15: 15 | K15: 30 | L15: 15 | M15: 30 | N15: 15 | O15: 31 | P15: 16 | Q15: 31 | R15: 17 | S15: 32 | T15: 16 | U15: 30 | V15: 16 | W15: 30 | X15: 16 | Y15: 31 | Z15: 16 | AA15: 30 | AB15: 18 | AC15: 33
B16: 12 | C16: 17 | D16: 19 | E16: 33 | F16: 17 | G16: 29 | H16: 17 | I16: 28 | J16: 16 | K16: 30 | L16: 18 | M16: 32 | N16: 16 | O16: 29 | P16: 17 | Q16: 31 | R16: 18 | S16: 32 | T16: 17 | U16: 30 | V16: 19 | W16: 32 | X16: 17 | Y16: 29 | Z16: 17 | AA16: 30 | AB16: 19 | AC16: 33
B17: 13 | C17: 18 | D17: 20 | E17: 33 | F17: 18 | G17: 29 | H17: 18 | I17: 28 | J17: 17 | K17: 30 | L17: 19 | M17: 32 | N17: 17 | O17: 29 | P17: 20 | Q17: 33 | R17: 19 | S17: 30 | T17: 18 | U17: 30 | V17: 20 | W17: 32 | X17: 18 | Y17: 29 | Z17: 18 | AA17: 30 | AB17: 20 | AC17: 33
B18: 14 | C18: 19 | D18: 21 | E18: 33 | F18: 19 | G18: 29 | H18: 19 | I18: 28 | J18: 21 | K18: 33 | L18: 20 | M18: 29 | N18: 18 | O18: 29 | P18: 21 | Q18: 33 | R18: 20 | S18: 30 | T18: 21 | U18: 32 | V18: 21 | W18: 30 | X18: 19 | Y18: 29 | Z18: 21 | AA18: 32 | AB18: 21 | AC18: 31
B19: 15 | C19: 22 | D19: 22 | E19: 31 | F19: 20 | G19: 29 | H19: 20 | I19: 28 | J19: 22 | K19: 33 | L19: 21 | M19: 29 | N19: 19 | O19: 29 | P19: 22 | Q19: 33 | R19: 21 | S19: 30 | T19: 22 | U19: 32 | V19: 22 | W19: 30 | X19: 20 | Y19: 29 | Z19: 22 | AA19: 32 | AB19: 22 | AC19: 31
B20: 16 | C20: 23 | D20: 23 | E20: 31 | F20: 23 | G20: 31 | H20: 23 | I20: 28 | J20: 23 | K20: 31 | L20: 22 | M20: 29 | N20: 22 | O20: 31 | P20: 23 | Q20: 31 | R20: 24 | S20: 32 | T20: 23 | U20: 30 | V20: 23 | W20: 30 | X20: 23 | Y20: 31 | Z20: 23 | AA20: 30 | AB20: 25 | AC20: 33
B21: 17 | C21: 24 | D21: 26 | E21: 33 | F21: 24 | G21: 29 | H21: 24 | I21: 28 | J21: 24 | K21: 31 | L21: 26 | M21: 32 | N21: 23 | O21: 28 | P21: 24 | Q21: 31 | R21: 25 | S21: 32 | T21: 24 | U21: 30 | V21: 26 | W21: 32 | X21: 24 | Y21: 29 | Z21: 24 | AA21: 30 | AB21: 26 | AC21: 33
B22: 18 | C22: 26 | D22: 27 | E22: 32 | F22: 25 | G22: 29 | H22: 25 | I22: 28 | J22: 27 | K22: 33 | L22: 27 | M22: 30 | N22: 24 | O22: 28 | P22: 27 | Q22: 33 | R22: 26 | S22: 30 | T22: 25 | U22: 30 | V22: 27 | W22: 32 | X22: 25 | Y22: 29 | Z22: 28 | AA22: 33 | AB22: 27 | AC22: 30
B23: 19 | C23: 29 | D23: 28 | E23: 30 | F23: 26 | G23: 29 | H23: 26 | I23: 28 | J23: 28 | K23: 33 | L23: 28 | M23: 30 | N23: 25 | O23: 28 | P23: 28 | Q23: 33 | R23: 27 | S23: 30 | T23: 28 | U23: 32 | V23: 28 | W23: 30 | X23: 30 | Y23: 33 | Z23: 29 | AA23: 29 | AB23: 28 | AC23: 30
B24: 20 | C24: 30 | D24: 29 | E24: 30 | F24: 27 | G24: 29 | H24: 27 | I24: 28 | J24: 29 | K24: 33 | L24: 29 | M24: 30 | N24: 26 | O24: 28 | P24: 29 | Q24: 33 | R24: 28 | S24: 30 | T24: 29 | U24: 32 | V24: 29 | W24: 30 | X24: 1 | Y24: =AH5-V24+AG5+1 -> 33 | Z24: 30 | AA24: =Z24-X24 -> 29 | AB24: 29 | AC24: 30
B25: AVG
B26: ELAPSED DAYS | E26: =SUM(E5:E24)/20 -> 31.95 | G26: =SUM(G5:G24)/20 -> 28.55 | I26: =SUM(I5:I24)/20 -> 28.8 | K26: =SUM(K5:K24)/20 -> 31.25 | M26: =SUM(M5:M24)/20 -> 30.55 | O26: =SUM(O5:O24)/20 -> 29.2 | Q26: =SUM(Q5:Q24)/20 -> 32.1 | S26: =SUM(S5:S24)/20 -> 30.9 | U26: =SUM(U5:U24)/20 -> 30.5 | W26: =SUM(W5:W24)/20 -> 30.55 | Y26: =SUM(Y5:Y24)/20 -> 29.75 | AA26: =SUM(AA5:AA24)/20 -> 31.25 | AC26: =SUM(AC5:AC24)/20 -> 31.95
F28: February cy 1 read 01/30 | Y28: Nov cy 1 read 10/31
Y29: Nov cy 20 read 12/1
